fUST/lending_fUST_20250302
["ID","MTS","AMOUNT","RATE_DAILY","PERIOD"]
[355024346,1740873040398,-1545.79,0.00024657,2]
[355024347,1740873040407,-1931.62,0.00024657,2]
[355024348,1740873040417,-551.91,0.00024657,2]
[355024349,1740873040427,-500.0,0.00024657,2]
[355024350,1740873040436,-500.0,0.00024657,2]
[355024351,1740873040446,-500.0,0.00024657,2]
[355024352,1740873040456,-500.0,0.00024657,2]
[355024353,1740873040465,-904.54,0.00024657,2]
[355024354,1740873040475,-500.0,0.00024657,2]
[355024355,1740873040484,-500.0,0.00024657,2]
[355024356,1740873040494,-1129.6,0.00024657,2]
[355024357,1740873040503,-500.0,0.00024657,2]
[355024358,1740873040512,-700.04,0.00024657,2]
[355024359,1740873040522,-500.0,0.00024657,2]
[355024360,1740873040531,-192942.74,0.00024657,2]
[355024361,1740873040541,-500.0,0.00024657,2]
[355024362,1740873040550,-500.0,0.00024657,2]
[355024363,1740873040559,-786.76,0.00024657,2]
[355024364,1740873040569,-500.0,0.00024657,2]
[355024365,1740873040578,-615.44,0.00024657,2]
[355024366,1740873040588,-3860.7,0.00024657,2]
[355024367,1740873040597,-1620.26,0.00024657,2]
[355024368,1740873040608,-2034.07,0.00024657,2]
[355024369,1740873040617,-500.0,0.00024657,2]
[355024370,1740873040627,-830.96,0.00024657,2]
[355024371,1740873040636,-500.0,0.00024657,2]
[355024372,1740873040646,-500.0,0.00024657,2]
[355024373,1740873040655,-500.0,0.00024657,2]
[355024374,1740873040664,-500.0,0.00024657,2]
[355024375,1740873040673,-819.44,0.00024657,2]
[355024376,1740873040683,-500.0,0.00024657,2]
[355024377,1740873040692,-500.0,0.00024657,2]
[355024378,1740873040701,-653.28,0.00024657,2]
[355024379,1740873040710,-4020.17,0.00024657,2]
[355024380,1740873040720,-500.0,0.00024657,2]
[355024381,1740873040729,-521.4,0.00024657,2]
[355024382,1740873040738,-953.86,0.00024657,2]
[355024383,1740873040748,-500.0,0.00024657,2]
[355024384,1740873040757,-500.0,0.00024657,2]
[355024385,1740873040767,-550.93,0.00024657,2]
[355024386,1740873040777,-500.0,0.00024657,2]
[355024387,1740873040786,-200.0,0.00024657,2]
[355024388,1740873040796,-628.91,0.00024657,2]
[355024389,1740873040806,-2219.83,0.00024657,2]
[355024390,1740873040815,-500.0,0.00024657,2]
[355024391,1740873040826,-500.0,0.00024657,2]
[355024392,1740873040835,-500.0,0.00024657,2]
[355024393,1740873040845,-513.45228912,0.00024657,2]
[355024394,1740873040859,-707.73,0.00024657,2]
[355024395,1740873040868,-500.0,0.00024657,2]
[355024396,1740873040878,-500.0,0.00024657,2]
[355024397,1740873040887,-500.0,0.00024657,2]
[355024398,1740873040898,-500.0,0.00024657,2]
[355024399,1740873040907,-500.0,0.00024657,2]
[355024400,1740873040917,-500.0,0.00024657,2]
[355024401,1740873040928,-5224.95,0.00024657,2]
[355024402,1740873040937,-3541.59,0.00024657,2]
[355024403,1740873040947,-1312.91,0.00024657,2]
[355024404,1740873041249,-507.40677207,0.00024657,2]
[355024405,1740873041262,-617.41,0.00024657,2]
[355024406,1740873041272,-1167.23,0.00024657,2]
[355024407,1740873041282,-500.0,0.00024657,2]
[355024408,1740873041292,-500.0,0.00024657,2]
[355024409,1740873041302,-500.0,0.00024657,2]
[355024410,1740873041311,-500.0,0.00024657,2]
[355024411,1740873041321,-500.0,0.00024657,2]
[355024412,1740873041330,-500.0,0.00024657,2]
[355024413,1740873041339,-500.0,0.00024657,2]
[355024414,1740873041349,-2196.45,0.00024657,2]
[355024415,1740873041358,-1371.07,0.00024657,2]
[355024416,1740873041368,-515.65,0.00024657,2]
[355024417,1740873041377,-500.0,0.00024657,2]
[355024418,1740873041387,-500.0,0.00024657,2]
[355024419,1740873041396,-500.0,0.00024657,2]
[355024420,1740873041405,-500.0,0.00024657,2]
[355024421,1740873041414,-1064.54,0.00024657,2]
[355024422,1740873041424,-152.58103398,0.00024657,2]
[355024423,1740873041434,-500.0,0.00024657,2]
[355024424,1740873041443,-500.0,0.00024657,2]
[355024425,1740873041453,-500.0,0.00024657,2]
[355024426,1740873041463,-500.0,0.00024657,2]
[355024427,1740873041472,-500.0,0.00024657,2]
[355024428,1740873041481,-500.0,0.00024657,2]
[355024429,1740873041491,-2106.67,0.00024657,2]
[355024430,1740873041500,-500.0,0.00024657,2]
[355024431,1740873041509,-500.0,0.00024657,2]
[355024432,1740873041519,-500.0,0.00024657,2]
[355024433,1740873041529,-500.0,0.00024657,2]
[355024434,1740873041538,-500.0,0.00024657,2]
[355024435,1740873041548,-766.4,0.00024657,2]
[355024436,1740873041557,-500.0,0.00024657,2]
[355024437,1740873041567,-1882.72,0.00024657,2]
[355024438,1740873041576,-500.0,0.00024657,2]
[355024439,1740873041585,-534.75,0.00024657,2]
[355024440,1740873041594,-500.0,0.00024657,2]
[355024441,1740873041604,-500.0,0.00024657,2]
[355024442,1740873041613,-500.0,0.00024657,2]
[355024443,1740873041623,-500.0,0.00024657,2]
[355024444,1740873041632,-500.0,0.00024657,2]
[355024445,1740873041642,-500.0,0.00024657,2]
[355024446,1740873041651,-500.0,0.00024657,2]
[355024447,1740873041661,-500.0,0.00024657,2]
[355024448,1740873041670,-500.0,0.00024657,2]
[355024449,1740873041679,-551.87205177,0.00024657,2]
[355024450,1740873041689,-464.74502592,0.00024657,2]
[355024451,1740873041699,-928.33,0.00024657,2]
[355024452,1740873041709,-500.0,0.00024657,2]
[355024453,1740873041718,-1085.82,0.00024657,2]
[355024454,1740873041728,-15107.9,0.00024657,2]
[355024455,1740873041737,-500.2,0.00024657,2]
[355024456,1740873041747,-500.0,0.00024657,2]
[355024457,1740873041756,-500.0,0.00024657,2]
[355024458,1740873041766,-1544.35,0.00024657,2]
[355024459,1740873041775,-5283.99,0.00024657,2]
[355024460,1740873041785,-500.0,0.00024657,2]
[355024461,1740873041794,-1059.54,0.00024657,2]
[355024462,1740873041803,-500.0,0.00024657,2]
[355024463,1740873041812,-500.0,0.00024657,2]
[355024464,1740873041822,-502.15668944,0.00024657,2]
[355024465,1740873041831,-500.0,0.00024657,2]
[355024466,1740873041840,-325.02174419,0.00024657,2]
[355024467,1740873041851,-500.0,0.00024657,2]
[355024468,1740873041862,-500.0,0.00024657,2]
[355024469,1740873041872,-500.0,0.00024657,2]
[355024470,1740873041881,-500.0,0.00024657,2]
[355024471,1740873041891,-875.75,0.00024657,2]
[355024472,1740873041901,-500.0,0.00024657,2]
[355024473,1740873041910,-500.0,0.00024657,2]
[355024474,1740873041920,-500.0,0.00024657,2]
[355024475,1740873041931,-1148.11,0.00024657,2]
[355024476,1740873041940,-1989.18,0.00024657,2]
[355024477,1740873041950,-7386.96,0.00024657,2]
[355024478,1740873041959,-500.0,0.00024657,2]
[355024479,1740873041968,-500.0,0.00024657,2]
[355024480,1740873041978,-500.0,0.00024657,2]
[355024481,1740873041987,-500.0,0.00024657,2]
[355024482,1740873041997,-500.0,0.00024657,2]
[355024483,1740873042006,-542.2,0.00024657,2]
[355024484,1740873042016,-500.0,0.00024657,2]
[355024485,1740873042026,-795.63,0.00024657,2]
[355024486,1740873042036,-500.0,0.00024657,2]
[355024487,1740873042045,-500.0,0.00024657,2]
[355024488,1740873042055,-545.17307275,0.00024657,2]
[355024489,1740873042065,-500.0,0.00024657,2]
[355024490,1740873042075,-500.0,0.00024657,2]
[355024491,1740873042084,-500.0,0.00024657,2]
[355024492,1740873042094,-500.0,0.00024657,2]
[355024493,1740873042104,-571.2,0.00024657,2]
[355024494,1740873042113,-11182.75,0.00024657,2]
[355024495,1740873042123,-500.0,0.00024657,2]
[355024496,1740873042133,-500.0,0.00024657,2]
[355024497,1740873042142,-500.0,0.00024657,2]
[355024498,1740873042152,-782.09,0.00024657,2]
[355024499,1740873042161,-500.0,0.00024657,2]
[355024500,1740873042171,-4744.64,0.00024657,2]
[355024501,1740873042180,-500.0,0.00024657,2]
[355024502,1740873042190,-500.0,0.00024657,2]
[355024503,1740873042199,-1509.52,0.00024657,2]
[355024504,1740873042209,-500.0,0.00024657,2]
[355024505,1740873042218,-500.0,0.00024657,2]
[355024506,1740873042228,-500.0,0.00024657,2]
[355024507,1740873042237,-500.0,0.00024657,2]
[355024508,1740873042246,-500.0,0.00024657,2]
[355024509,1740873042256,-500.0,0.00024657,2]
[355024510,1740873042266,-557.7,0.00024657,2]
[355024511,1740873042275,-500.0,0.00024657,2]
[355024512,1740873042285,-500.0,0.00024657,2]
[355024513,1740873042294,-500.0,0.00024657,2]
[355024514,1740873042304,-500.0,0.00024657,2]
[355024515,1740873042313,-500.0,0.00024657,2]
[355024516,1740873042323,-500.0,0.00024657,2]
[355024517,1740873042332,-402.94456754,0.00024657,2]
[355024518,1740873042342,-500.0,0.00024657,2]
[355024519,1740873042351,-500.0,0.00024657,2]
[355024520,1740873042361,-2034.14,0.00024657,2]
[355024521,1740873042370,-346.17023805,0.00024657,2]
[355024522,1740873042380,-6624.41,0.00024657,2]
[355024523,1740873042389,-500.0,0.00024657,2]
[355024524,1740873042399,-1038.76,0.00024657,2]
[355024525,1740873042408,-500.0,0.00024657,2]
[355024526,1740873042418,-1191.77,0.00024657,2]
[355024527,1740873042427,-1005.27,0.00024657,2]
[355024528,1740873042437,-1426.51,0.00024657,2]
[355024529,1740873042447,-3168.63,0.00024657,2]
[355024530,1740873042457,-500.0,0.00024657,2]
[355024531,1740873042467,-500.0,0.00024657,2]
[355024532,1740873042476,-500.0,0.00024657,2]
[355024533,1740873042486,-503.73344001,0.00024657,2]
[355024534,1740873042495,-618.33,0.00024657,2]
[355024535,1740873042505,-500.0,0.00024657,2]
[355024536,1740873042514,-500.0,0.00024657,2]
[355024537,1740873042524,-500.0,0.00024657,2]
[355024538,1740873042534,-500.0,0.00024657,2]
[355024539,1740873042544,-500.0,0.00024657,2]
[355024540,1740873042554,-500.0,0.00024657,2]
[355024541,1740873042564,-1373.31,0.00024657,2]
[355024542,1740873042573,-33847.62,0.00024657,2]
[355024543,1740873042583,-500.0,0.00024657,2]
[355024544,1740873042593,-786.69,0.00024657,2]
[355024545,1740873042602,-500.0,0.00024657,2]
[355024546,1740873042612,-1120.95,0.00024657,5]
[355024547,1740873042622,-500.0,0.00024657,2]
[355024548,1740873042632,-500.0,0.00024657,2]
[355024549,1740873042641,-500.0,0.00024657,2]
[355024550,1740873042651,-500.0,0.00024657,2]
[355024551,1740873042660,-500.0,0.00024657,2]
[355024552,1740873042670,-509.34185723,0.00024657,2]
[355024553,1740873042679,-792.73,0.00024657,2]
[355024554,1740873042689,-500.0,0.00024657,2]
[355024555,1740873042699,-500.0,0.00024657,2]
[355024556,1740873042709,-500.0,0.00024657,2]
[355024557,1740873042718,-500.0,0.00024657,2]
[355024558,1740873042727,-3287.68,0.00024657,2]
[355024559,1740873042737,-1525.48,0.00024657,2]
[355024561,1740873042747,-844.34,0.00024657,2]
[355024563,1740873042756,-500.0,0.00024657,2]
[355024565,1740873042766,-1480.84,0.00024657,2]
[355024567,1740873042776,-500.0,0.00024657,2]
[355024569,1740873042786,-500.0,0.00024657,2]
[355024570,1740873042795,-500.0,0.00024657,2]
[355024571,1740873042805,-500.0,0.00024657,2]
[355024572,1740873042815,-500.0,0.00024657,2]
[355024573,1740873042825,-500.0,0.00024657,2]
[355024574,1740873042835,-2217.26,0.00024657,2]
[355024575,1740873042845,-3141.53,0.00024657,2]
[355024576,1740873042859,-500.0,0.00024657,2]
[355024577,1740873042868,-500.0,0.00024657,2]
[355024578,1740873042878,-561.39,0.00024657,2]
[355024579,1740873042887,-500.0,0.00024657,2]
[355024580,1740873042897,-500.0,0.00024657,2]
[355024581,1740873042907,-500.0,0.00024657,2]
[355024582,1740873042916,-500.0,0.00024657,2]
[355024583,1740873042927,-500.0,0.00024657,2]
[355024584,1740873042937,-500.0,0.00024657,2]
[355024585,1740873042947,-5858.01,0.00024657,2]
[355024586,1740873042956,-500.0,0.00024657,2]
[355024587,1740873042965,-500.0,0.00024657,2]
[355024588,1740873042975,-500.0,0.00024657,2]
[355024589,1740873042984,-500.0,0.00024657,2]
[355024590,1740873042994,-500.0,0.00024657,2]
[355024591,1740873043004,-500.0,0.00024657,2]
[355024592,1740873043014,-539.70988336,0.00024657,2]
[355024593,1740873043026,-500.0,0.00024657,2]
[355024594,1740873043035,-572.76,0.00024657,2]
[355024595,1740873043046,-500.0,0.00024657,2]
[355024596,1740873043055,-500.0,0.00024657,2]
[355024597,1740873043065,-1084.73,0.00024657,2]
[355024598,1740873043077,-1794.11,0.00024657,2]
[355024599,1740873043086,-16741.84,0.00024657,2]
[355024600,1740873043096,-500.0,0.00024657,2]
[355024601,1740873043105,-500.0,0.00024657,2]
[355024602,1740873043116,-500.0,0.00024657,2]
[355024603,1740873043126,-500.0,0.00024657,2]
[355024604,1740873043136,-500.0,0.00024657,2]
[355024605,1740873043146,-470.39141204,0.00024657,2]
[355024606,1740873043156,-500.0,0.00024657,2]
[355024607,1740873043166,-502.95938668,0.00024657,2]
[355024608,1740873043175,-500.0,0.00024657,2]
[355024609,1740873043185,-1116.36,0.00024657,2]
[355024610,1740873043195,-500.0,0.00024657,2]
[355024611,1740873043204,-500.0,0.00024657,2]
[355024612,1740873043214,-500.0,0.00024657,2]
[355024613,1740873043223,-511.3805039,0.00024657,2]
[355024614,1740873043232,-519.4773465,0.00024657,2]
[355024615,1740873043242,-500.0,0.00024657,2]
[355024616,1740873043252,-500.0,0.00024657,2]
[355024617,1740873043262,-500.0,0.00024657,2]
[355024618,1740873043278,-500.0,0.00024657,2]
[355024619,1740873043288,-500.0,0.00024657,2]
[355024620,1740873043297,-500.0,0.00024657,2]
[355024621,1740873043307,-500.0,0.00024657,2]
[355024623,1740873043316,-663.04,0.00024657,2]
[355024625,1740873043325,-1498.45,0.00024657,2]
[355024626,1740873043335,-1164.83,0.00024657,2]
[355024627,1740873043345,-500.0,0.00024657,2]
[355024628,1740873043354,-500.0,0.00024657,2]
[355024629,1740873043363,-267.78360873,0.00024657,2]
[355024630,1740873043372,-803.31,0.00024657,2]
[355024631,1740873043382,-500.0,0.00024657,2]
[355024632,1740873043392,-505.73008203,0.00024657,2]
[355024633,1740873043401,-3369.37,0.00024657,2]
[355024634,1740873043411,-500.0,0.00024657,2]
[355024635,1740873043420,-500.0,0.00024657,2]
[355024636,1740873043429,-962.67,0.00024657,2]
[355024637,1740873043438,-500.0,0.00024657,2]
[355024638,1740873043447,-1414.47,0.00024657,2]
[355024639,1740873043456,-500.0,0.00024657,2]
[355024640,1740873043465,-14902.97,0.00024657,2]
[355024641,1740873043475,-500.0,0.00024657,2]
[355024642,1740873043485,-5963.48,0.00024657,2]
[355024643,1740873043494,-500.0,0.00024657,2]
[355024644,1740873043504,-500.0,0.00024657,2]
[355024645,1740873043513,-500.0,0.00024657,2]
[355024646,1740873043528,-500.0,0.00024657,2]
[355024647,1740873043537,-500.0,0.00024657,2]
[355024648,1740873043547,-528.74,0.00024657,2]
[355024649,1740873043556,-500.0,0.00024657,2]
[355024650,1740873043565,-500.0,0.00024657,2]
[355024651,1740873043574,-525.35,0.00024657,2]
[355024652,1740873043584,-1581.22,0.00024657,2]
[355024653,1740873043595,-666.94,0.00024657,2]
[355024654,1740873043605,-500.0,0.00024657,2]
[355024655,1740873043615,-500.0,0.00024657,2]
[355024656,1740873043625,-500.0,0.00024657,2]
[355024657,1740873043635,-500.0,0.00024657,2]
[355024659,1740873043644,-230.0,0.00024658,2]
[355024660,1740873043654,-154.8760086,0.00024658,2]
[355024661,1740873043663,-154.9433566,0.00024658,2]
[355024662,1740873043673,-158.9461933,0.00024658,2]
[355024663,1740873043682,-154.9433566,0.00024658,2]
[355024664,1740873043691,-154.9433566,0.00024658,2]
[355024665,1740873043701,-154.9433566,0.00024658,2]
[355024666,1740873043710,-154.9433566,0.00024658,2]
[355024667,1740873043719,-154.9433566,0.00024658,2]
[355024668,1740873043729,-154.9433566,0.00024658,2]
[355024669,1740873043739,-154.9888434,0.00024658,2]
[355024670,1740873043748,-500.0,0.00024658,2]
[355024671,1740873043758,-500.0,0.00024658,2]
[355024672,1740873043768,-500.0,0.00024658,2]
[355024673,1740873043777,-500.0,0.00024658,2]
[355024674,1740873043787,-500.0,0.00024658,2]
[355024675,1740873043796,-500.0,0.00024658,2]
[355024676,1740873043805,-500.0,0.00024658,2]
[355024677,1740873043815,-500.0,0.00024658,2]
[355024678,1740873043824,-500.0,0.00024658,2]
[355024679,1740873043833,-500.0,0.00024658,2]
[355024680,1740873043843,-296.09010705,0.00024658,2]
[355024681,1740873043858,-500.0,0.00024658,2]
[355024682,1740873043875,-500.0,0.00024673,2]
[355024683,1740873043885,-500.0,0.00024673,2]
[355024684,1740873043895,-500.0,0.00024673,2]
[355024685,1740873043905,-619.3229817,0.00024673,2]
[355024686,1740873043914,-500.0,0.00024673,2]
[355024687,1740873043923,-300.26517633,0.00024673,2]
[355024688,1740873043933,-500.0,0.00024673,2]
[355024689,1740873043942,-500.0,0.00024673,2]
[355024690,1740873043951,-500.0,0.00024673,2]
[355024691,1740873043961,-500.0,0.00024673,2]
[355024692,1740873043970,-251.58457217,0.00024673,2]
[355024693,1740873043979,-500.0,0.00024673,2]
[355024694,1740873043989,-500.0,0.00024673,2]
[355024695,1740873043999,-500.0,0.00024673,2]
[355024696,1740873044008,-500.0,0.00024673,2]
[355024697,1740873044018,-500.0,0.00024673,2]
[355024698,1740873044027,-464.28565197,0.00024673,2]
[355024699,1740873044038,-500.0,0.00024673,2]
[355024700,1740873044047,-602.33728723,0.00024673,2]
[355024701,1740873044056,-500.0,0.00024673,2]
[355024702,1740873044066,-500.0,0.00024673,2]
[355024703,1740873044075,-500.0,0.00024673,2]
[355024704,1740873044084,-391.48,0.000247,7]
[355024705,1740873044094,-2513.6879109,0.000247,2]
[355024706,1740873044103,-601.24362988,0.00024729,2]
[355024707,1740873044112,-601.24362988,0.00024814,2]
[355024708,1740873044122,-601.24362988,0.000249,2]
[355024709,1740873044131,-8770.83452293,0.000249,2]
[355024710,1740873044141,-208.84989201,0.00024931,2]
[355024711,1740873044150,-500.0,0.00024931,2]
[355024712,1740873044160,-536.05514205,0.00024931,2]
[355024713,1740873044169,-209.62608574,0.00024931,2]
[355024714,1740873044179,-500.0,0.00024931,2]
[355024715,1740873044188,-1441.23,0.00024931,2]
[355024716,1740873044198,-500.0,0.00024931,2]
[355024717,1740873044208,-500.0,0.00024931,2]
[355024718,1740873044217,-500.0,0.00024931,2]
[355024719,1740873044226,-292.98527967,0.00024931,2]
[355024720,1740873044236,-500.0,0.00024931,2]
[355024721,1740873044246,-874.13,0.00024931,2]
[355024722,1740873044255,-500.0,0.00024931,2]
[355024723,1740873044264,-500.0,0.00024931,2]
[355024724,1740873044273,-500.0,0.00024931,2]
[355024725,1740873044283,-500.0,0.00024931,2]
[355024726,1740873044293,-500.0,0.00024931,2]
[355024727,1740873044303,-500.0,0.00024931,2]
[355024728,1740873044313,-500.0,0.00024931,2]
[355024729,1740873044322,-302.51797588,0.00024931,2]
[355024730,1740873044332,-500.0,0.00024931,2]
[355024731,1740873044341,-520.22,0.00024931,2]
[355024732,1740873044350,-509.66,0.00024931,2]
[355024733,1740873044360,-500.0,0.00024931,2]
[355024734,1740873044370,-500.0,0.00024931,2]
[355024735,1740873044380,-741.49,0.00024931,2]
[355024736,1740873044389,-500.0,0.00024931,2]
[355024737,1740873044399,-500.0,0.00024931,2]
[355024738,1740873044408,-1160.3,0.00024931,2]
[355024739,1740873044417,-500.0,0.00024931,2]
[355024740,1740873044426,-500.0,0.00024931,2]
[355024741,1740873044435,-500.0,0.00024931,2]
[355024742,1740873044445,-500.0,0.00024931,2]
[355024743,1740873044454,-500.0,0.00024931,2]
[355024744,1740873044464,-500.0,0.00024931,2]
[355024745,1740873044473,-684.94,0.00024931,2]
[355024746,1740873044483,-500.0,0.00024931,2]
[355024747,1740873044492,-500.0,0.00024931,2]
[355024748,1740873044501,-500.0,0.00024931,2]
[355024749,1740873044511,-500.0,0.00024931,2]
[355024750,1740873044521,-500.0,0.00024931,2]
[355024751,1740873044530,-500.0,0.00024931,2]
[355024752,1740873044539,-500.0,0.00024931,2]
[355024753,1740873044549,-500.0,0.00024931,2]
[355024754,1740873044559,-500.0,0.00024931,2]
[355024755,1740873044568,-500.0,0.00024931,2]
[355024756,1740873044578,-500.0,0.00024931,2]
[355024757,1740873044587,-500.0,0.00024931,2]
[355024758,1740873044597,-518.70008818,0.00024931,2]
[355024759,1740873044606,-500.0,0.00024931,2]
[355024760,1740873044615,-1334.82,0.00024931,2]
[355024761,1740873044625,-500.0,0.00024931,2]
[355024762,1740873044634,-500.0,0.00024931,2]
[355024763,1740873044643,-500.0,0.00024931,2]
[355024764,1740873044653,-887.17,0.00024931,2]
[355024765,1740873044662,-500.0,0.00024931,2]
[355024766,1740873044672,-500.0,0.00024931,2]
[355024767,1740873044681,-500.0,0.00024931,2]
[355024768,1740873044691,-500.0,0.00024931,2]
[355024769,1740873044701,-500.0,0.00024931,2]
[355024770,1740873044710,-500.0,0.00024931,2]
[355024771,1740873044719,-500.0,0.00024931,2]
[355024772,1740873044729,-500.0,0.00024931,2]
[355024773,1740873044739,-543.92248431,0.00024931,2]
[355024774,1740873044748,-500.0,0.00024931,2]
[355024775,1740873044758,-500.0,0.00024931,2]
[355024776,1740873044767,-500.0,0.00024931,2]
[355024777,1740873044776,-500.0,0.00024931,2]
[355024778,1740873044786,-500.0,0.00024931,2]
[355024779,1740873044796,-500.0,0.00024931,2]
[355024780,1740873044805,-508.06437309,0.00024931,2]
[355024781,1740873044814,-500.0,0.00024931,2]
[355024782,1740873044824,-500.0,0.00024931,2]
[355024783,1740873044833,-516.03,0.00024931,2]
[355024784,1740873044843,-593.01578155,0.00024931,2]
[355024785,1740873044853,-500.0,0.00024931,2]
[355024786,1740873044863,-500.0,0.00024931,2]
[355024787,1740873044872,-627.37,0.00024931,2]
[355024788,1740873044881,-330.24502847,0.00024931,2]
[355024789,1740873044890,-508.01824028,0.00024931,2]
[355024790,1740873044901,-500.0,0.00024931,2]
[355024791,1740873044910,-500.0,0.00024931,2]
[355024792,1740873044919,-500.0,0.00024931,2]
[355024793,1740873044931,-500.0,0.00024931,2]
[355024794,1740873044942,-500.0,0.00024931,2]
[355024795,1740873044951,-731.7,0.00024931,2]
[355024796,1740873044960,-500.0,0.00024931,2]
[355024797,1740873044970,-500.0,0.00024931,2]
[355024798,1740873044979,-500.0,0.00024931,2]
[355024799,1740873044989,-500.0,0.00024931,2]
[355024800,1740873044998,-500.0,0.00024931,2]
[355024801,1740873045007,-500.0,0.00024931,2]
[355024802,1740873045018,-196.14217479,0.00024931,2]
[355024803,1740873045027,-500.0,0.00024931,2]
[355024804,1740873045038,-500.0,0.00024931,2]
[355024805,1740873045047,-993.52,0.00024931,2]
[355024806,1740873045056,-500.0,0.00024931,2]
[355024807,1740873045066,-813.19,0.00024931,2]
[355024808,1740873045075,-500.0,0.00024931,2]
[355024809,1740873045085,-541.54,0.00024931,2]
[355024810,1740873045095,-500.0,0.00024931,2]
[355024811,1740873045104,-500.0,0.00024931,2]
[355024812,1740873045113,-1291.05,0.00024931,2]
[355024813,1740873045122,-866.08,0.00024931,2]
[355024814,1740873045132,-500.0,0.00024931,2]
[355024815,1740873045142,-500.0,0.00024931,2]
[355024816,1740873045151,-500.0,0.00024931,2]
[355024817,1740873045161,-500.0,0.00024931,2]
[355024818,1740873045171,-918.84,0.00024931,2]
[355024819,1740873045180,-500.0,0.00024931,2]
[355024820,1740873045190,-500.0,0.00024931,2]
[355024821,1740873045199,-500.0,0.00024931,2]
[355024822,1740873045208,-573.54,0.00024931,2]
[355024823,1740873045218,-619.76,0.00024931,2]
[355024824,1740873045228,-500.0,0.00024931,2]
[355024825,1740873045238,-500.0,0.00024931,2]
[355024826,1740873045248,-238.5656605,0.00024931,2]
[355024827,1740873045515,-500.0,0.00024931,2]
[355024828,1740873045526,-500.0,0.00024931,2]
[355024829,1740873045536,-500.0,0.00024931,2]
[355024830,1740873045546,-500.0,0.00024931,2]
[355024831,1740873045556,-500.0,0.00024931,2]
[355024832,1740873045565,-615.86,0.00024931,2]
[355024833,1740873045575,-500.0,0.00024931,2]
[355024834,1740873045584,-611.0,0.00024931,2]
[355024835,1740873045594,-500.0,0.00024931,2]
[355024836,1740873045603,-500.0,0.00024931,2]
[355024837,1740873045613,-782.43,0.00024931,2]
[355024838,1740873045623,-500.0,0.00024931,2]
[355024839,1740873045633,-500.0,0.00024931,2]
[355024840,1740873045642,-630.23988269,0.00024931,2]
[355024841,1740873045652,-500.0,0.00024931,2]
[355024842,1740873045661,-521.39,0.00024931,2]
[355024843,1740873045671,-500.0,0.00024931,2]
[355024844,1740873045680,-513.22129983,0.00024931,2]
[355024845,1740873045690,-500.0,0.00024931,2]
[355024846,1740873045699,-1170.42,0.00024931,2]
[355024847,1740873045709,-527.78,0.00024931,2]
[355024848,1740873045718,-1928.32,0.00024931,2]
[355024849,1740873045728,-500.0,0.00024931,2]
[355024850,1740873045738,-500.0,0.00024931,2]
[355024851,1740873045747,-500.0,0.00024931,2]
[355024852,1740873045757,-500.0,0.00024931,2]
[355024853,1740873045767,-500.0,0.00024931,2]